bitfinex/quotes_SOLUSD_20260305
["timestamp","ask_amount","ask_price","bid_price","bid_amount"]
[1772692511196,1.4599677,90.377,90.339,1.54759607]
[1772692511594,1.4599677,90.377,90.338,38.74338594]
[1772692511595,1.4599677,90.376,90.338,11.06953884]
[1772692512815,1.4599677,90.376,90.339,1.53921971]
[1772692515018,1.4599677,90.374,90.34,11.06929377]
[1772692517000,1.4599677,90.372,90.333,11.07015155]
[1772692518293,1.4599677,90.372,90.334,1.51910627]
[1772692518514,1.4599677,90.399,90.334,1.51910627]
[1772692518908,1.74429084,90.399,90.334,1.51910627]
[1772692519500,1.68741201,90.393,90.336,1.46802804]
[1772692521716,1.40308887,90.389,90.338,1.46802804]
[1772692523916,11.06341549,90.388,90.339,11.0694163]
[1772692524117,1.40308887,90.387,90.34,1.46802804]
[1772692525404,1.40308887,90.387,90.339,38.74295707]
[1772692525804,1.40308887,90.387,90.34,1.46802804]
[1772692526009,38.72195423,90.388,90.34,1.46802804]
[1772692526010,1.40308887,90.385,90.341,11.06917125]
[1772692527124,1.40308887,90.385,90.341,12.54791267]
[1772692527626,1.40308887,90.385,90.342,1.47874142]
[1772692528912,1.51924045,90.383,90.343,11.0689262]
[1772692530022,1.51924045,90.381,90.339,27.67354077]
[1772692530626,1.51924045,90.379,90.337,11.06966137]
[1772692530828,1.51924045,90.369,90.325,11.07113202]
[1772692531818,1.51924045,90.359,90.321,0.9360718]
[1772692532011,1.51924045,90.357,90.313,1.46202237]
[1772692535610,11.06733365,90.356,90.314,38.75368159]
[1772692535808,1.51924045,90.355,90.315,1.44932532]
[1772692536015,12.58599144,90.361,90.315,1.44932532]
[1772692536531,1.51924045,90.36,90.315,1.44932532]
[1772692537931,1.51924045,90.358,90.317,1.44319346]
[1772692541922,1.51924045,90.356,90.318,11.07199007]
[1772692542143,1.51924045,90.356,90.319,1.4313467]
[1772692544136,1.51924045,90.354,90.32,11.0717449]
[1772692545739,1.51924045,90.354,90.315,11.07230902]
[1772692547331,1.51924045,90.352,90.306,29.10083405]
[1772692547523,1.51924045,90.352,90.307,1.41728771]
[1772692547844,1.51924045,90.35,90.307,1.41728771]
[1772692551141,1.43486906,90.348,90.309,1.36628646]
[1772692552635,12.50223009,90.356,90.309,1.36628646]
[1772692553037,1.43486906,90.355,90.311,1.36628646]
[1772692554817,1.43486906,90.349,90.31,11.07297087]
[1772692555850,1.43486906,90.347,90.309,1.36628646]
[1772692556027,1.7191922,90.374,90.309,1.36628646]
[1772692557334,1.7191922,90.369,90.309,1.36628646]
[1772692559940,11.06586402,90.368,90.309,1.36628646]
[1772692560152,1.43486906,90.367,90.311,1.36628646]
[1772692563035,1.43486906,90.365,90.313,1.36628646]
[1772692566250,1.7191922,90.363,90.315,1.36628646]
[1772692566949,1.43486906,90.363,90.315,1.36628646]
[1772692567251,1.43486906,90.377,90.318,1.6506096]
[1772692568132,1.43486906,90.377,90.323,1.64854894]
[1772692569243,1.43486906,90.377,90.325,1.64644275]
[1772692569752,1.43486906,90.375,90.325,1.64644275]
[1772692572041,1.43486906,90.375,90.327,1.35594509]
[1772692575066,1.43486906,90.375,90.329,1.3499809]
[1772692575652,1.43486906,90.373,90.328,38.74767513]
[1772692575943,1.43486906,90.373,90.329,1.34803833]
[1772692577556,1.43486906,90.373,90.331,1.34611807]
[1772692577758,1.43486906,90.371,90.331,1.34611807]
[1772692581054,1.43486906,90.371,90.333,1.3368426]
[1772692582857,1.43729187,90.369,90.333,1.3368426]
[1772692583063,1.43729187,90.367,90.335,1.33327985]
[1772692584261,1.43729187,90.367,90.337,1.33152911]
[1772692587067,1.43729187,90.367,90.339,1.32472493]
[1772692590049,1.43729187,90.367,90.34,11.06929377]
[1772692590251,1.43729187,90.367,90.341,1.31982421]
[1772692592071,1.43729187,90.367,90.343,1.31665016]
[1772692593776,1.45705387,90.396,90.343,1.31665016]
[1772692594078,1.45705387,90.395,90.345,1.31354861]
[1772692594276,1.74137701,90.395,90.345,1.31354861]
[1772692595957,1.74137701,90.393,90.347,1.31051789]
[1772692596158,1.45705387,90.389,90.346,11.06855865]
[1772692599153,1.45705387,90.387,90.342,38.74167053]
[1772692600281,1.45705387,90.387,90.342,40.04633308]
[1772692600467,1.45705387,90.387,90.342,38.74167053]
[1772692600967,1.45705387,90.387,90.342,40.04491103]
[1772692601172,1.45705387,90.385,90.343,1.3032405]
[1772692604073,1.45705387,90.379,90.344,11.06880368]
[1772692608479,1.45705387,90.379,90.307,0.28432314]
[1772692608480,1.74137701,90.369,90.334,11.070029]
[1772692608860,1.45705387,90.369,90.335,1.29115504]
[1772692612485,1.38404805,90.367,90.337,1.28739784]
[1772692613786,1.38404805,90.367,90.339,1.28496441]
[1772692614486,1.38404805,90.367,90.338,11.06953884]
[1772692615675,1.38404805,90.367,90.275,4.82477569]
[1772692615676,1.38404805,90.359,90.31,1.28376861]
[1772692616490,4.23178713,90.36,90.312,1.28258656]
[1772692616491,1.38404805,90.357,90.312,1.28258656]
[1772692618777,1.38404805,90.361,90.314,1.27912122]
[1772692619092,1.38404805,90.377,90.314,1.27912122]
[1772692621590,1.38404805,90.375,90.316,1.27687683]
[1772692622596,1.38404805,90.375,90.316,1.56119997]
[1772692623697,1.38404805,90.375,90.318,1.55792913]
[1772692625693,1.38404805,90.375,90.32,1.55581071]
[1772692627383,1.38404805,90.383,90.323,1.55476971]
[1772692629101,1.38404805,90.383,90.326,1.26840031]
[1772692630099,11.06414994,90.382,90.326,1.26840031]
[1772692630407,1.38404805,90.381,90.326,1.26840031]
[1772692631298,1.38404805,90.381,90.328,1.55072393]
[1772692631508,1.38404805,90.387,90.331,1.55072393]
[1772692631882,1.38404805,90.387,90.331,105.95072393]
[1772692632087,11.06113097,90.407,90.333,1.62775449]
[1772692632296,11.06113097,90.407,90.335,1.62775449]
[1772692632698,4.23178713,90.4,90.335,1.62775449]
[1772692633004,11.06113097,90.407,90.335,1.62775449]
[1772692634090,1.38404805,90.404,90.34,1.62775449]
[1772692638188,1.38404805,90.402,90.342,1.62775449]
[1772692640604,1.39545626,90.408,90.347,1.378603]
[1772692640808,1.39545626,90.408,90.349,1.378603]
[1772692641212,1.39545626,90.399,90.349,1.378603]
[1772692641394,1.39545626,90.389,90.349,1.378603]
[1772692642590,1.39545626,90.387,90.35,11.06806862]
[1772692643793,1.39545626,90.387,90.351,1.378603]
[1772692646910,1.32335195,90.385,90.352,11.06782362]
[1772692647414,1.32335195,90.385,90.353,1.39991061]
[1772692650215,1.32335195,90.385,90.355,1.39991061]
[1772692653121,1.32335195,90.385,90.356,12.46724426]
[1772692653829,4.23178713,90.4,90.324,3.69383402]
[1772692653830,1.32335195,90.383,90.324,3.69383402]
[1772692654124,1.32335195,90.339,90.292,1.39991061]
[1772692654425,1.32335195,90.329,90.292,1.39991061]
[1772692655211,1.32335195,90.327,90.293,11.07505565]
[1772692656610,1.32335195,90.327,90.287,11.07577737]
[1772692657429,1.32335195,90.325,90.287,11.07577737]
[1772692658007,1.32335195,90.309,90.264,1.39991061]
[1772692658206,1.32335195,90.299,90.264,1.39991061]
[1772692659227,4.23178713,90.3,90.264,1.39991061]
[1772692659228,1.32335195,90.297,90.265,11.0784911]
[1772692660928,1.32335195,90.303,90.266,1.39991061]
[1772692661510,1.32335195,90.301,90.268,1.39991061]
[1772692663723,1.32335195,90.301,90.27,1.39991061]
[1772692664830,1.32335195,90.299,90.272,1.39991061]
[1772692665712,1.32335195,90.299,90.274,1.39991061]
[1772692668110,0.28432314,90.325,90.275,38.77042369]
[1772692668435,4.23991284,90.32,90.276,1.39991061]
[1772692670137,11.07199007,90.318,90.277,11.0770185]
[1772692670445,1.33468396,90.317,90.278,1.35309892]
[1772692672820,3.69383402,90.342,90.262,55.39407137]
[1772692672821,1.33468396,90.322,90.28,1.35309892]
[1772692677142,4.23991284,90.33,90.282,1.35309892]
[1772692677833,4.23991284,90.34,90.282,1.35309892]
[1772692679239,4.23991284,90.32,90.284,1.35309892]
[1772692679447,0.40270861,90.319,90.284,1.35309892]
[1772692679943,4.23991284,90.32,90.284,1.35309892]
[1772692681539,27.6738471,90.338,90.286,1.42590448]
[1772692681725,11.06966137,90.337,90.286,1.42590448]
[1772692682039,11.06966137,90.337,90.286,1.71022762]
[1772692682339,11.06819112,90.349,90.286,1.71022762]
[1772692683836,11.06819112,90.349,90.288,1.71022762]
[1772692685852,11.06819112,90.349,90.29,1.71022762]
[1772692687928,11.06696621,90.359,90.294,1.42590448]
[1772692688442,11.06696621,90.359,90.297,1.42590448]
[1772692690624,11.06586402,90.368,90.302,1.42590448]
[1772692690831,11.06586402,90.368,90.304,1.71022762]
[1772692691038,11.06586402,90.368,90.306,1.56806605]
[1772692691248,38.73052407,90.368,90.307,1.42590448]
[1772692691525,4.23991284,90.36,90.307,1.42590448]
[1772692692330,38.73052407,90.368,90.309,1.42590448]
[1772692694649,11.06466688,90.378,90.314,1.42590448]
[1772692694842,11.06385735,90.385,90.37,5.73419367]
[1772692695937,27.65747301,90.392,90.37,5.73419367]
[1772692696138,0.14216157,90.391,90.37,5.73419367]
[1772692696452,0.28432314,90.391,90.37,5.73419367]
[1772692698270,11.0631707,90.39,90.37,5.73419367]
[1772692698839,15.30308354,90.39,90.37,4.41084169]
[1772692700058,11.0631707,90.39,90.37,4.41084169]
[1772692700267,11.0631707,90.39,90.365,1.42590448]
[1772692700558,11.06182453,90.401,90.365,1.42590448]
[1772692701463,38.71638587,90.401,90.356,1.42590448]
[1772692701764,4.23991284,90.39,90.344,1.42590448]
[1772692701958,0.1,90.41,90.343,3.69383402]
[1772692701959,4.23991284,90.4,90.346,1.42590448]
[1772692702349,4.23991284,90.39,90.346,1.42590448]
[1772692702860,4.23991284,90.4,90.346,1.42590448]
[1772692704055,4.23991284,90.4,90.348,1.42590448]
[1772692706165,11.06206927,90.399,90.35,1.42590448]
[1772692706937,11.06084571,90.409,90.35,1.42590448]
[1772692708241,0.1,90.41,90.346,55.34258733]
[1772692708242,4.33991284,90.41,90.352,1.42590448]
[1772692710359,38.71295999,90.409,90.354,1.42590448]
[1772692713264,38.71295999,90.409,90.355,38.7360965]
[1772692713462,38.71295999,90.409,90.356,1.42590448]
[1772692715448,4.33991284,90.41,90.358,1.42590448]
[1772692717462,11.06084571,90.409,90.36,1.42590448]
[1772692717776,4.23991284,90.4,90.359,11.06696621]
[1772692718452,38.71295999,90.409,90.354,1.42590448]
[1772692718453,4.23991284,90.39,90.354,1.42590448]
[1772692719863,38.72152583,90.389,90.354,1.42590448]
[1772692720864,38.72152583,90.389,90.355,11.06745614]
[1772692721771,38.72152583,90.389,90.356,1.42590448]
[1772692721957,11.06206927,90.399,90.358,1.42590448]
[1772692722360,11.06096805,90.408,90.358,1.42590448]
[1772692722964,0.1,90.41,90.358,1.42590448]
[1772692723277,11.06084571,90.409,90.358,1.42590448]
[1772692724557,0.1,90.41,90.36,1.42590448]
[1772692728364,0.1,90.41,90.362,1.42590448]
[1772692728962,4.22866488,90.4,90.362,1.42590448]
[1772692729185,4.32866488,90.41,90.362,1.42590448]
[1772692730986,11.06084571,90.409,90.364,1.42590448]
[1772692733782,0.1,90.41,90.366,1.42590448]
[1772692735891,0.1,90.41,90.368,1.42590448]
[1772692737876,0.1,90.41,90.37,1.42590448]
[1772692740301,0.1,90.41,90.372,1.42590448]
[1772692741097,0.1,90.41,90.375,1.42590448]
[1772692741597,0.1,90.42,90.376,1.37590448]
[1772692741798,0.1,90.44,90.378,1.66022762]
[1772692741978,0.10981041,90.438,90.38,1.66022762]
[1772692742407,0.10981041,90.438,90.382,1.37590448]
[1772692742611,0.10981041,90.438,90.385,1.37590448]
[1772692742893,0.10981041,90.438,90.385,1.66022762]
[1772692745505,0.10981041,90.438,90.387,1.37590448]
[1772692749285,0.10981041,90.438,90.388,38.72195423]
[1772692749484,0.10981041,90.438,90.389,1.37590448]
[1772692750530,0.11067964,90.429,90.383,11.06393882]
[1772692750692,0.11067964,90.419,90.383,11.06393882]
[1772692751601,0.11078274,90.418,90.383,11.06393882]
[1772692752906,11.05962242,90.419,90.384,1.37590448]
[1772692753109,0.1109854,90.438,90.384,1.37590448]
[1772692753903,0.1109854,90.438,90.386,1.66022762]
[1772692755930,0.1,90.44,90.386,1.66022762]
[1772692756303,0.21128074,90.44,90.388,1.37590448]
[1772692758412,0.21128074,90.44,90.39,1.37590448]
[1772692760015,11.2684187,90.44,90.39,1.37590448]
[1772692760217,0.11175079,90.439,90.39,1.37590448]
[1772692760400,0.11175079,90.439,90.389,94.03799132]
[1772692760401,0.11175079,90.439,90.392,1.37590448]
[1772692762919,0.11175079,90.439,90.394,1.37590448]
[1772692764418,0.11175079,90.439,90.396,1.37590448]
[1772692766919,0.11175079,90.439,90.398,1.37590448]
[1772692772328,0.11175079,90.439,90.399,11.06206927]
[1772692773028,0.11175079,90.439,90.399,12.43797375]
[1772692773329,11.05717666,90.439,90.401,11.06182453]
[1772692773504,0.11293125,90.438,90.402,1.37590448]
[1772692775708,0.11293125,90.438,90.404,1.37590448]
[1772692776812,0.11293125,90.438,90.406,1.37590448]
[1772692778507,0.1,90.44,90.408,1.37590448]
[1772692779213,0.11338157,90.439,90.408,1.37590448]
[1772692780725,0.11338157,90.439,90.41,1.37590448]
[1772692782536,0.1,90.44,90.41,1.37590448]
[1772692782832,0.1,90.44,90.389,55.31625001]
[1772692782833,0.1,90.44,90.412,1.37590448]
[1772692783742,0.11366489,90.439,90.412,1.37590448]
[1772692783947,0.11366489,90.439,90.411,11.06060103]
[1772692784241,0.11366489,90.439,90.412,1.37590448]
[1772692784440,0.11366489,90.439,90.411,11.06060103]
[1772692784942,0.11366489,90.439,90.412,1.37590448]
[1772692785343,0.11366489,90.439,90.407,11.0610904]
[1772692785644,0.11366489,90.439,90.408,1.37590448]
[1772692788427,0.11366489,90.439,90.41,1.37590448]
[1772692789935,0.11366489,90.439,90.412,1.37590448]
[1772692790638,0.1,90.45,90.412,1.37590448]
[1772692790817,0.1,90.46,90.412,1.37590448]
[1772692790818,0.21425648,90.46,90.412,1.37590448]
[1772692791021,0.1,90.46,90.412,1.37590448]
[1772692791227,0.1,90.46,90.415,1.37590448]
[1772692791428,0.1,90.46,90.415,1.66022762]
[1772692791945,0.1,90.48,90.42,1.66022762]
[1772692792145,0.1,90.48,90.421,1.37590448]
[1772692792941,1e-08,90.492,90.425,5.0697385]
[1772692793242,1e-08,90.492,90.428,1.66022762]
[1772692793447,1e-08,90.492,90.43,1.66022762]
[1772692793644,1e-08,90.492,90.434,1.51806605]
[1772692793947,1e-08,90.492,90.441,1.37590448]
[1772692794135,0.2144404,90.519,90.443,1.37099339]
[1772692794329,0.2144404,90.519,90.453,1.37099339]
[1772692794545,0.1,90.52,90.453,1.37099339]
[1772692794749,0.1,90.52,90.463,1.37099339]
[1772692794951,0.1,90.54,90.466,1.37099339]
[1772692795135,4.32537527,90.56,90.464,1.88164698]
[1772692795136,0.1,90.56,90.47,1.37099339]
[1772692795332,0.4145003,90.553,90.472,1.65531653]
[1772692795526,0.4145003,90.553,90.468,3.69383402]
[1772692795527,7.44784786,90.549,90.475,1.37099339]
[1772692795745,0.41455952,90.548,90.478,1.37099339]
[1772692796046,11.45852769,90.548,90.485,1.37099339]
[1772692796256,11.04396817,90.548,90.487,1.37099339]
[1772692796550,0.41455952,90.547,90.487,1.37099339]
[1772692797831,7.03334756,90.549,90.492,1.37099339]
[1772692798151,0.41467591,90.554,90.492,1.65531653]
[1772692798530,11.04325643,90.553,90.492,1.65531653]
[1772692799247,11.04325643,90.553,90.495,1.37099339]
[1772692799454,0.41467591,90.554,90.495,1.37099339]
[1772692800134,0.41489314,90.552,90.501,1.37099339]
[1772692800932,38.65139751,90.553,90.501,1.37099339]
[1772692800933,0.41498394,90.549,90.501,1.37099339]
[1772692801550,0.41498394,90.539,90.501,1.37099339]
[1772692801933,0.4150737,90.529,90.492,1.37099339]
[1772692802246,0.4150737,90.527,90.493,11.05057849]
[1772692802551,0.4150737,90.519,90.48,2.03494281]
[1772692802872,0.4150737,90.519,90.481,11.05204407]
[1772692803327,0.4150737,90.519,90.482,1.37099339]
[1772692804043,0.41525014,90.508,90.474,1.37099339]
[1772692804833,0.41533684,90.499,90.466,11.05384736]
[1772692805035,0.41533684,90.499,90.466,1.37099339]
[1772692805642,0.41533684,90.499,90.467,11.0537544]
[1772692806336,0.41542255,90.497,90.461,11.05443386]
[1772692806538,0.41542255,90.497,90.458,1.37099339]
[1772692806745,11.04996795,90.498,90.458,1.37099339]
[1772692806746,0.41542255,90.489,90.458,1.37099339]
[1772692807151,0.41542255,90.489,90.453,11.05538151]
[1772692807346,0.41542255,90.489,90.454,1.37099339]
[1772692807541,0.41550727,90.497,90.454,1.37099339]
[1772692808736,0.41559102,90.495,90.456,1.37099339]
[1772692809059,0.41559102,90.495,90.449,1.45393369]
[1772692809060,4.22537527,90.48,90.449,1.45393369]
[1772692809236,0.41567381,90.479,90.445,11.05644314]
[1772692810439,0.41575564,90.469,90.429,1.37099339]
[1772692810659,0.41575564,90.467,90.431,1.37099339]
[1772692811739,0.41575564,90.467,90.411,27.65136686]
[1772692811740,0.4159165,90.459,90.424,12.42988363]
[1772692811942,0.4159165,90.459,90.425,1.37099339]
[1772692812139,0.4159165,90.479,90.425,1.37099339]
[1772692812342,3.69383402,90.534,90.425,1.37099339]
[1772692812343,0.4159165,90.469,90.425,1.37099339]
[1772692812850,11.46962777,90.468,90.427,1.37099339]
[1772692813543,0.41599555,90.467,90.427,1.37099339]
[1772692813854,11.05275625,90.476,90.427,1.37099339]
[1772692814067,0.41607369,90.484,90.427,1.37099339]
[1772692814256,4.22537527,90.48,90.427,1.37099339]
[1772692814464,0.41607369,90.479,90.427,1.37099339]
[1772692814667,0.41615094,90.469,90.427,1.37099339]
[1772692814963,0.41615094,90.467,90.429,1.37099339]
[1772692816164,0.41622729,90.499,90.429,1.37099339]
[1772692817243,0.41630277,90.497,90.431,1.37099339]
[1772692817570,0.41630277,90.497,90.39,5.93109276]
[1772692817571,4.22537527,90.45,90.401,1.37099339]
[1772692817778,0.41630277,90.448,90.412,1.37099339]
[1772692819364,11.05619865,90.447,90.414,1.3197747]
[1772692819966,11.47279476,90.447,90.414,1.3197747]
[1772692820172,11.47279476,90.447,90.396,1.3197747]
[1772692820173,0.41659611,90.446,90.396,1.3197747]
[1772692820376,0.41659611,90.454,90.396,1.60409784]
[1772692821354,0.41666735,90.452,90.398,1.3197747]
[1772692822757,4.22537527,90.46,90.398,1.60409784]
[1772692822758,11.05495261,90.458,90.398,1.60409784]
[1772692823264,11.47176,90.458,90.398,1.46193627]
[1772692823564,11.47176,90.458,90.4,1.46193627]
[1772692823766,0.41687621,90.466,90.403,1.46193627]
[1772692825772,11.05367265,90.468,90.388,104.4]
[1772692825773,11.47101026,90.465,90.405,1.60409784]
[1772692825961,11.05399878,90.465,90.405,1.60409784]
[1772692826951,11.47107673,90.465,90.405,1.60409784]
[1772692827248,0.41714366,90.464,90.405,1.60409784]
[1772692827671,0.41714366,90.462,90.407,1.41248096]
[1772692828567,0.41720861,90.496,90.41,1.6968041]
[1772692828761,0.41720861,90.479,90.41,1.6968041]
[1772692828967,0.41720861,90.479,90.415,1.6968041]
[1772692830154,0.41733629,90.477,90.417,1.41248096]
[1772692831660,0.41739903,90.469,90.417,1.41248096]
[1772692833369,0.41752236,90.467,90.418,38.70910659]
[1772692833554,0.41752236,90.467,90.419,1.41248096]
[1772692834470,0.41758296,90.459,90.419,1.41248096]
[1772692835174,0.41764287,90.468,90.419,1.41248096]
[1772692836064,0.41770209,90.466,90.421,1.41248096]
[1772692838279,0.41781849,90.464,90.423,1.41248096]
[1772692840280,0.41793224,90.462,90.425,1.41248096]
[1772692842479,0.41622873,90.46,90.427,1.41248096]
[1772692844479,0.41438606,90.458,90.428,11.05852169]
[1772692844863,0.41438606,90.458,90.428,12.47100265]
[1772692845167,0.41438606,90.458,90.429,1.41248096]
[1772692847070,0.41428053,90.456,90.429,1.41248096]
[1772692848084,0.41428053,90.456,90.43,11.05827712]
[1772692848483,0.41428053,90.456,90.431,1.41248096]
[1772692851288,0.41383388,90.454,90.431,1.41248096]
[1772692852591,0.41383388,90.454,90.433,1.33553134]
[1772692852795,11.05167764,90.484,90.434,1.43282142]
[1772692853873,27.62919411,90.484,90.436,1.43282142]
[1772692858178,4.22383031,90.48,90.438,1.43282142]
[1772692858479,4.22383031,90.47,90.433,11.0578928]
[1772692858884,4.22383031,90.47,90.374,104.4]
[1772692858885,1.32931462,90.459,90.374,104.4]
[1772692859084,1.32931462,90.459,90.385,11.0637827]
[1772692859281,1.32931462,90.459,90.389,0.28432314]
[1772692860201,1.32931462,90.457,90.393,3.69383402]
[1772692860502,1.32931462,90.457,90.394,0.28432314]
[1772692860989,1.32931462,90.457,90.395,1.33553134]
[1772692861302,1.32931462,90.455,90.4,1.33553134]
[1772692861499,1.32931462,90.449,90.4,1.33553134]
[1772692861696,1.32931462,90.429,90.396,11.06243639]
[1772692861897,1.32931462,90.429,90.397,1.33553134]
[1772692864292,1.32931462,90.427,90.399,1.33553134]
[1772692864501,1.32931462,90.459,90.399,1.33553134]
[1772692865400,1.32931462,90.439,90.399,1.33553134]
[1772692865899,4.22383031,90.43,90.399,1.33553134]
[1772692866105,1.32931462,90.429,90.399,1.33553134]
[1772692866494,1.32931462,90.428,90.401,1.33553134]
[1772692868089,11.05839928,90.43,90.401,1.33553134]
[1772692868293,11.05783092,90.434,90.401,1.33553134]
[1772692869398,11.05783092,90.434,90.403,1.33553134]
[1772692869788,1.32931462,90.429,90.391,11.06300263]
[1772692870004,1.32931462,90.429,90.391,12.39853397]
[1772692870205,1.32931462,90.429,90.392,1.33553134]
[1772692871802,1.32931462,90.427,90.393,12.39833487]
[1772692872889,1.32931462,90.419,90.389,11.06327537]
[1772692873304,1.32931462,90.419,90.39,1.33553134]
[1772692873889,11.05974474,90.418,90.392,1.33553134]
[1772692874287,12.38905936,90.418,90.392,1.33553134]
[1772692876509,12.38905936,90.418,90.394,1.33553134]
[1772692877612,1.32931462,90.417,90.394,1.33553134]
[1772692878806,11.05998938,90.416,90.394,1.33553134]
[1772692879186,1.31436527,90.415,90.378,1.38971965]
[1772692881413,11.06023403,90.414,90.379,11.06451719]
[1772692881614,1.31436527,90.413,90.38,1.38971965]
[1772692883210,11.0597893,90.418,90.38,1.38971965]
[1772692883396,1.31436527,90.418,90.381,11.06427235]
[1772692883597,1.31436527,90.418,90.382,1.38971965]
[1772692885304,11.05986706,90.417,90.384,1.38971965]
[1772692886813,1.31436527,90.416,90.384,1.38971965]
[1772692887405,1.40105122,90.414,90.386,1.38862034]
[1772692890429,1.40105122,90.414,90.387,11.06353789]
[1772692890616,1.40105122,90.414,90.388,1.38862034]
[1772692890996,27.64630424,90.428,90.388,1.38862034]
[1772692891322,1.39682421,90.447,90.388,1.38862034]
[1772692891614,1.39682421,90.439,90.388,1.38862034]
[1772692896225,1.39180787,90.437,90.39,1.38862034]
[1772692899521,4.22383031,90.44,90.392,1.38862034]
[1772692899522,1.38893424,90.435,90.392,1.38862034]
[1772692902512,1.3861585,90.433,90.394,1.38862034]
[1772692904538,1.3861585,90.433,90.396,1.38862034]
[1772692905628,1.3834773,90.431,90.396,1.38862034]
[1772692907138,1.3834773,90.431,90.398,1.38862034]
[1772692908450,1.3834773,90.431,90.4,1.38862034]
[1772692910343,1.3834773,90.431,90.401,11.06182453]
[1772692910529,1.3834773,90.431,90.402,1.27562417]
[1772692912456,1.3834773,90.431,90.403,38.71552934]
[1772692912624,1.28644127,90.442,90.404,1.27562417]
[1772692914530,27.64021604,90.448,90.403,38.71552934]
[1772692914531,1.28644127,90.44,90.406,1.27562417]
[1772692916439,11.05717666,90.439,90.407,11.0610904]
[1772692916738,1.28644127,90.438,90.408,1.27562417]
[1772692916941,27.63224793,90.474,90.408,1.35963135]
[1772692917119,4.22654556,90.46,90.408,1.35963135]
[1772692919036,0.08475359,90.458,90.41,1.35963135]
[1772692920542,11.05402579,90.465,90.41,1.35963135]
[1772692920754,11.13595243,90.476,90.415,1.50179292]
[1772692920955,11.13595243,90.476,90.417,1.35963135]
[1772692921250,11.13595243,90.476,90.412,3.69383402]
[1772692921251,0.08329759,90.475,90.423,0.14216157]
[1772692921454,0.08329759,90.475,90.424,1.50179292]
[1772692921626,0.08329759,90.475,90.426,1.64395449]
[1772692925743,0.08329759,90.475,90.428,1.35963135]
[1772692926246,0.07595573,90.469,90.428,1.35963135]
[1772692929534,0.07595573,90.469,90.43,1.35963135]
[1772692929730,11.05265484,90.476,90.43,1.35963135]
[1772692929936,0.06962859,90.479,90.43,1.35963135]
[1772692930135,0.06962859,90.486,90.43,1.64395449]
[1772692930539,0.06962859,90.486,90.434,1.35963135]
[1772692930852,0.06809197,90.491,90.434,1.35963135]
[1772692931151,11.05103558,90.49,90.434,1.35963135]
[1772692932460,11.05103558,90.49,90.439,1.35963135]
[1772692933033,11.05149029,90.486,90.439,1.35963135]
[1772692934240,0.06507146,90.487,90.439,1.35963135]
[1772692934842,0.06211994,90.481,90.441,1.35963135]
[1772692936048,0.06211994,90.481,90.443,1.35963135]
[1772692937369,0.05923584,90.479,90.443,1.35963135]
[1772692938168,0.05923584,90.479,90.445,1.35963135]
[1772692940273,11.05192192,90.482,90.447,1.35963135]
[1772692940453,0.05366374,90.481,90.447,1.35963135]
[1772692942274,0.05366374,90.481,90.449,1.35963135]
[1772692944557,0.05366374,90.481,90.451,1.35963135]
[1772692946772,0.05366374,90.481,90.453,1.35963135]
[1772692947468,11.05130869,90.488,90.453,1.35963135]
[1772692950175,0.03960404,90.485,90.455,1.36068565]
[1772692950676,7.03682064,90.483,90.455,1.36068565]
[1772692950870,0.03841227,90.482,90.455,1.36068565]
[1772692951255,0.03841227,90.481,90.455,1.36068565]
[1772692953461,0.03841227,90.481,90.456,12.41578426]
[1772692954358,0.03841227,90.481,90.457,1.36068565]
[1772692956280,0.03265566,90.516,90.46,1.36068565]
[1772692957765,0.0315437,90.509,90.46,1.36068565]
[1772692958180,0.03044452,90.508,90.462,1.36068565]
[1772692958861,11.04862499,90.509,90.462,1.36068565]
[1772692958862,0.02935796,90.499,90.462,1.36068565]
[1772692959761,0.02935796,90.499,90.463,11.05424317]
[1772692959762,0.02828388,90.498,90.463,11.05424317]
[1772692959978,0.02828388,90.498,90.464,1.36068565]
[1772692962678,0.02828388,90.498,90.466,1.36068565]
[1772692963381,11.04740441,90.519,90.466,1.64500879]
[1772692964090,0.02410953,90.518,90.45,3.69383402]
[1772692964383,11.04740441,90.519,90.443,1.36068565]
[1772692964384,0.02410953,90.469,90.443,1.36068565]
[1772692964682,0.02410953,90.468,90.443,1.36068565]
[1772692967073,0.02410953,90.468,90.432,1.36068565]
[1772692967274,0.02410953,90.468,90.419,1.36068565]
[1772692967275,0.02110294,90.449,90.419,1.36068565]
[1772692967880,4.22378929,90.46,90.419,1.36068565]
[1772692968087,0.02012368,90.46,90.419,1.36068565]
[1772692968289,0.02012368,90.459,90.419,1.36068565]
[1772692968994,11.05473197,90.459,90.421,1.35963135]
[1772692971195,11.05473197,90.459,90.423,1.35963135]
[1772692972199,11.05403782,90.465,90.423,1.35963135]
[1772692972773,4.22378929,90.46,90.423,1.35963135]
[1772692973292,0.28432314,90.468,90.425,1.35963135]
[1772692973492,11.0535573,90.469,90.425,1.35963135]
[1772692974486,11.0535573,90.469,90.427,1.35963135]
[1772692976104,38.6873324,90.469,90.427,1.35963135]
[1772692977600,38.6873324,90.469,90.429,1.35963135]
[1772692978391,11.0535573,90.469,90.429,1.35963135]
[1772692979405,11.05351004,90.469,90.429,1.35963135]
[1772692979706,11.33661151,90.479,90.431,1.35963135]